bitfinex/quotes_ETHUSD_20240817
["timestamp","ask_amount","ask_price","bid_price","bid_amount"]
[1723932189594,2.86647,2616.5,2616.1,2.4929]
[1723932189788,2.74396979,2616.5,2616.1,2.4929]
[1723932189994,22.81626,2616.7,2616.2,2.86669]
[1723932190194,22.81626,2616.7,2616.1,2.4929]
[1723932190195,22.2866,2616.7,2616.1,2.4929]
[1723932190490,25.098006,2616.6,2616.1,5.3597]
[1723932190690,2.86658,2616.4,2615.8,8.22711]
[1723932191149,2.86658,2616.4,2615.9,2.86705]
[1723932191314,2.86676,2616.2,2615.8,2.4929]
[1723932191498,2.86644,2616.5,2616.0,2.86696]
[1723932191795,2.86637,2616.6,2616.1,5.35967]
[1723932192007,2.86664,2616.4,2615.9,5.35991]
[1723932192431,2.86664,2616.4,2615.9,8.22694]
[1723932192695,2.86664,2616.4,2615.9,5.35991]
[1723932193006,0.44628766,2616.6,2616.0,2.86696]
[1723932193007,2.86642,2616.5,2616.0,2.86696]
[1723932193751,2.86628,2616.7,2616.2,2.86664]
[1723932193908,0.33125677,2616.5,2616.0,2.86689]
[1723932194109,3.19773677,2616.5,2616.0,2.86689]
[1723932194927,3.19773677,2616.5,2616.1,2.86685]
[1723932196435,19.95,2616.4,2615.9,5.3599]
[1723932197035,19.95,2616.4,2616.0,2.86691]
[1723932199515,2.86685,2616.2,2615.6,4.77135]
[1723932199721,2.86685,2616.2,2615.7,2.86729]
[1723932199921,2.86685,2616.2,2615.7,5.73453]
[1723932200252,2.86685,2616.2,2615.8,2.4929]
[1723932201266,2.86691,2616.1,2615.6,7.26427]
[1723932201857,2.86691,2616.1,2615.7,2.86729]
[1723932202171,2.86717,2615.9,2615.6,1.904]
[1723932202661,3.2110053,2616.0,2615.6,1.904]
[1723932203534,0.3440253,2616.0,2615.6,1.904]
[1723932203859,5.25832,2616.1,2615.6,4.77138]
[1723932204062,2.86699,2616.0,2615.6,1.904]
[1723932205255,22.81713,2615.9,2615.6,1.904]
[1723932205460,2.568412,2615.8,2615.6,1.904]
[1723932205620,25.2087,2615.7,2615.6,1.904]
[1723932205819,28.076,2615.7,2615.6,1.904]
[1723932206776,25.2087,2615.7,2615.6,1.904]
[1723932208046,19.95,2615.7,2615.6,1.904]
[1723932208445,22.8173,2615.7,2615.6,1.904]
[1723932208756,25.54539966,2615.7,2615.6,1.904]
[1723932209148,30.80409966,2615.7,2615.6,1.904]
[1723932209362,32.40060624,2615.7,2615.6,1.904]
[1723932209554,30.80409966,2615.7,2615.6,1.904]
[1723932209749,32.80575765,2615.7,2615.6,1.904]
[1723932210536,30.80409966,2615.7,2615.6,1.904]
[1723932210735,32.80575765,2615.7,2615.6,1.904]
[1723932211071,45.09868925,2615.7,2615.6,1.309]
[1723932211274,42.229919,2615.7,2615.6,1.309]
[1723932212542,39.82939966,2615.7,2615.6,1.309]
[1723932212949,42.229919,2615.7,2615.6,1.309]
[1723932213362,39.82939966,2615.7,2615.6,1.309]
[1723932213676,5.73608,2615.1,2614.5,2.86861]
[1723932213885,2.86807,2615.0,2614.4,2.86867]
[1723932216171,2.86817,2614.9,2614.4,2.86867]
[1723932216372,2.86817,2614.9,2614.3,2.3712]
[1723932216373,2.86829,2614.8,2614.3,2.3712]
[1723932216684,2.86801,2615.1,2614.4,2.86863]
[1723932216886,2.86801,2615.1,2614.6,2.8685]
[1723932217190,2.86823,2614.9,2614.3,5.24003]
[1723932217694,19.95,2615.0,2614.5,2.8686]
[1723932218196,22.81807,2615.0,2614.5,2.8686]
[1723932218413,19.95,2615.0,2614.3,3.6812]
[1723932218613,19.95,2615.0,2614.6,2.3563]
[1723932218772,22.81812,2615.0,2614.6,2.3563]
[1723932218946,19.95,2615.0,2614.6,2.3563]
[1723932219354,19.95,2615.0,2614.6,5.2248]
[1723932220415,2.86828,2614.9,2614.4,2.86871]
[1723932221280,2.86827,2614.9,2614.3,3.6663]
[1723932221490,22.231798,2615.0,2614.3,1.31]
[1723932221491,22.81807,2615.0,2614.3,1.31]
[1723932221656,22.81807,2615.0,2614.4,2.86867]
[1723932221857,2.86821,2614.9,2614.4,2.86867]
[1723932222505,19.95,2615.0,2614.5,5.73715]
[1723932222710,19.95,2615.0,2614.5,2.86855]
[1723932223401,19.95,2615.0,2614.4,2.4172]
[1723932223603,19.95,2615.0,2614.6,2.86844]
[1723932224404,25.17892,2615.0,2614.4,5.4172]
[1723932224604,25.17892,2615.0,2614.4,2.4172]
[1723932224754,2.86821,2614.9,2614.4,2.4172]
[1723932224958,5.386102,2614.9,2614.4,2.4172]
[1723932225195,8.254362,2614.9,2614.4,2.4172]
[1723932225386,22.81807,2615.0,2614.4,2.4172]
[1723932226004,2.86818,2614.9,2614.4,2.4172]
[1723932226167,2.3608,2614.8,2614.3,1.31]
[1723932226369,2.86818,2614.9,2614.3,4.17881]
[1723932226576,2.86818,2614.9,2614.4,2.4172]
[1723932227071,3.9058099,2614.9,2614.4,2.4172]
[1723932227565,19.95,2615.0,2614.4,5.28587]
[1723932228011,19.95,2615.0,2614.5,2.86854]
[1723932228501,2.86818,2614.9,2614.3,4.17875]
[1723932228706,5.672882,2614.9,2614.3,4.17875]
[1723932229058,2.86845,2614.7,2614.3,1.31]
[1723932229862,2.86867,2614.5,2614.3,1.31]
[1723932232295,5.22927,2614.7,2614.3,1.31]
[1723932232654,2.8683,2614.8,2614.3,1.31]
[1723932232766,2.86852,2614.6,2614.3,1.31]
[1723932233389,2.86861,2614.5,2614.3,1.31]
[1723932234113,2.86872,2614.4,2614.3,1.31]
[1723932234432,3.442453,2614.4,2614.3,1.31]
[1723932235773,6.311173,2614.4,2614.3,1.31]
[1723932237109,3.442453,2614.4,2614.3,1.31]
[1723932237317,0.573733,2614.4,2614.3,1.31]
[1723932237810,3.442453,2614.4,2614.3,1.31]
[1723932238375,6.311173,2614.4,2614.3,1.31]
[1723932240122,11.630193,2614.4,2614.3,1.31]
[1723932240374,8.761473,2614.4,2614.3,1.31]
[1723932243670,11.630193,2614.4,2614.3,1.31]
[1723932244035,11.761473,2614.4,2614.3,1.31]
[1723932244428,14.630193,2614.4,2614.3,1.31]
[1723932244828,15.330193,2614.4,2614.3,1.31]
[1723932245276,16.92910033,2614.4,2614.3,1.31]
[1723932245651,15.330193,2614.4,2614.3,1.31]
[1723932245854,16.92910033,2614.4,2614.3,1.31]
[1723932247858,17.52937364,2614.4,2614.3,1.31]
[1723932248670,15.93046631,2614.4,2614.3,1.31]
[1723932248977,17.9244774,2614.4,2614.3,1.31]
[1723932249466,20.7931974,2614.4,2614.3,1.31]
[1723932249673,17.92468953,2614.4,2614.3,1.31]
[1723932249893,2.86942,2613.8,2613.2,2.3673]
[1723932250041,21.50954,2613.7,2613.2,2.3673]
[1723932250386,2.86961,2613.6,2613.2,2.3673]
[1723932250582,5.73927,2613.6,2613.2,2.3673]
[1723932250768,2.86961,2613.6,2613.2,2.3673]
[1723932252099,21.5095,2613.7,2613.2,2.3673]
[1723932252649,18.64,2613.7,2613.3,2.86987]
[1723932253190,21.50949,2613.7,2613.2,5.23734]
[1723932255183,18.64,2613.7,2613.3,2.86992]
[1723932255393,18.64,2613.7,2613.2,5.23733]
[1723932255692,18.64,2613.7,2613.3,2.86991]
[1723932255899,18.64,2613.6,2613.3,2.86986]
[1723932257296,18.64,2613.6,2613.4,2.3673]
[1723932257510,18.64,2613.6,2613.4,5.23711]
[1723932259574,18.64,2613.6,2613.3,2.86993]
[1723932259988,18.64,2613.6,2613.4,2.8698]
[1723932261801,18.64,2613.5,2613.4,2.8698]
[1723932263205,18.64,2613.5,2613.4,8.21272]
[1723932265833,18.64,2613.5,2613.4,11.08254]
[1723932266132,18.64,2613.5,2613.4,14.63254]
[1723932266342,18.64,2614.2,2614.0,2.86911]
[1723932266528,18.64,2614.1,2614.0,5.34221]
[1723932267413,1.318,2614.5,2614.0,5.34221]
[1723932268331,7.33014967,2614.9,2614.0,2.4731]
[1723932268645,1.318,2614.8,2614.3,2.86883]
[1723932268939,4.91931497,2614.8,2614.3,2.86883]
[1723932270429,1.318,2614.8,2614.3,5.73759]
[1723932270635,1.318,2614.8,2614.4,2.8687]
[1723932271598,1.59529967,2615.2,2614.6,2.8685]
[1723932271936,1.318,2615.0,2614.6,2.8685]
[1723932272096,1.59529967,2615.2,2614.6,2.8685]
[1723932272296,1.318,2615.0,2614.6,2.8685]
[1723932272491,1.318,2615.0,2614.5,5.3417]
[1723932272801,4.18608,2615.0,2614.5,5.3417]
[1723932272999,0.705405,2614.9,2614.5,5.3417]
[1723932275048,5.73599,2615.1,2614.5,5.3417]
[1723932275703,2.86797,2615.1,2614.6,2.86849]
[1723932276554,2.86785,2615.2,2614.7,2.86838]
[1723932276760,18.64,2615.1,2614.7,2.86838]
[1723932277268,18.64,2615.1,2614.5,2.4731]
[1723932277410,21.50796,2615.1,2614.5,5.34162]
[1723932277772,1.98287961,2615.0,2614.5,5.34162]
[1723932280145,1.98287961,2615.0,2614.6,2.86848]
[1723932281145,1.98287961,2615.0,2614.5,2.86852]
[1723932281146,4.85097961,2615.0,2614.5,2.86852]
[1723932281321,4.77448396,2614.9,2614.4,2.86872]
[1723932281527,7.64266396,2614.9,2614.4,2.86872]
[1723932282220,0.96255436,2614.8,2614.3,2.86878]
[1723932282467,2.86845,2614.7,2614.0,2.4995]
[1723932282673,0.96255436,2614.8,2613.2,2.86994]
[1723932282674,18.64,2614.6,2614.4,2.4995]
[1723932285649,2.86829,2614.8,2614.4,2.4995]
[1723932285650,18.64,2614.5,2614.4,2.4995]
[1723932288361,18.64,2614.5,2614.4,5.36822]
[1723932288947,18.64,2614.8,2614.4,5.36822]
[1723932290341,18.64,2614.8,2614.7,2.4995]
[1723932290540,18.64,2615.1,2614.7,5.36781]
[1723932290741,2.603,2615.0,2614.7,2.4995]
[1723932291281,18.64,2615.1,2614.8,2.86822]
[1723932291975,18.64,2615.1,2614.9,2.86815]
[1723932292957,18.64,2615.1,2614.8,2.86828]
[1723932293542,18.64,2615.1,2614.7,5.36783]
[1723932293968,25.714794,2615.1,2614.7,2.4995]
[1723932294280,25.714794,2615.1,2614.5,5.36801]
[1723932294638,25.714794,2615.1,2614.6,2.86843]
[1723932294840,22.846774,2615.1,2614.6,2.86843]
[1723932295057,18.64,2615.0,2614.6,2.86843]
[1723932297460,18.64,2615.0,2614.7,2.86839]
[1723932299404,18.64,2615.0,2614.8,2.86819]
[1723932299714,18.64,2615.0,2614.9,2.86817]
[1723932302303,18.64,2615.0,2614.8,2.86827]
[1723932303677,18.64,2615.0,2614.9,2.86817]
[1723932306585,18.64,2615.0,2614.9,5.73634]
[1723932306915,18.64,2615.0,2614.9,8.06214]
[1723932309801,1.317,2615.3,2615.0,2.86797]
[1723932310191,1.317,2615.3,2614.5,8.19431]
[1723932310192,1.317,2615.1,2614.5,8.19431]
[1723932310474,1.317,2615.1,2614.7,2.8683]
[1723932311447,2.91229967,2615.1,2614.7,2.8683]
[1723932311598,3.8208498,2615.1,2614.7,2.8683]
[1723932312253,3.8208498,2615.1,2614.7,5.73664]
[1723932312460,3.8208498,2615.1,2614.7,2.8683]
[1723932313831,1.59529967,2615.2,2615.0,2.868]
[1723932314036,1.59529967,2615.3,2615.0,2.868]
[1723932314342,4.56156797,2615.3,2615.0,2.868]
[1723932315594,20.23529967,2615.4,2615.0,2.868]
[1723932315797,18.64,2615.3,2615.1,2.8679]
[1723932318585,18.64,2615.4,2615.1,2.86793]
[1723932318790,18.64,2615.4,2615.3,5.19353]
[1723932319612,18.64,2615.4,2615.3,8.06126]
[1723932320301,1.59529967,2615.9,2615.5,2.8675]
[1723932320468,1.59529967,2616.0,2615.7,2.86724]
[1723932320673,1.59529967,2616.0,2615.7,5.19304]
[1723932320674,2.45875628,2616.0,2615.7,5.19304]
[1723932320876,1.59529967,2616.2,2615.8,2.86718]
[1723932321274,2.91229967,2616.3,2615.8,2.86718]
[1723932321513,0.61893461,2616.2,2615.8,2.86718]
[1723932321877,0.61893461,2616.2,2615.7,5.19309]
[1723932322078,2.21423428,2616.2,2615.7,5.19309]
[1723932322414,0.84036304,2616.1,2615.7,8.06033]
[1723932322614,0.84036304,2616.1,2615.7,8.06028]
[1723932322971,0.84036304,2616.1,2615.7,2.86724]
[1723932323208,3.28026304,2616.1,2615.7,2.86724]
[1723932323405,4.59726304,2616.1,2615.7,2.86724]
[1723932326080,0.80829477,2616.0,2615.5,2.3507]
[1723932326279,0.80829477,2616.0,2615.6,2.86738]
[1723932326616,2.91229967,2616.1,2615.6,2.86738]
[1723932326617,1.317,2616.1,2615.7,2.86724]
[1723932327761,0.61893461,2616.2,2615.9,2.86707]
[1723932328049,0.61893461,2616.2,2615.7,2.86724]
[1723932328050,1.317,2616.3,2615.8,5.21788]
[1723932329233,4.18365,2616.3,2615.8,5.21788]
[1723932329434,0.705022,2616.2,2615.8,5.21788]
[1723932329605,1.317,2616.3,2615.8,5.21788]
[1723932329812,1.317,2616.3,2615.9,2.86708]
[1723932330763,18.64,2616.2,2615.9,2.86708]
[1723932332349,18.64,2616.2,2615.8,2.3507]
[1723932332650,18.64,2616.2,2615.8,5.21786]
[1723932333350,18.64,2616.2,2615.9,2.86706]
[1723932333647,18.64,2616.2,2615.8,2.3507]
[1723932333826,1.9957,2616.1,2615.7,2.86719]
[1723932334838,3.3127,2616.1,2615.7,2.86719]
[1723932336692,18.64,2616.0,2615.7,2.86719]
[1723932336991,18.64,2616.1,2615.9,2.86708]
[1723932338115,18.64,2616.1,2616.0,2.86697]
[1723932339787,18.64,2616.1,2616.0,5.73394]
[1723932341453,18.64,2616.1,2616.0,8.08464]
[1723932342410,18.64,2616.6,2615.9,4.18406]
[1723932342565,18.64,2616.5,2616.4,2.86646]
[1723932343577,18.64,2616.5,2616.4,5.27236]
[1723932344003,1.59529967,2617.2,2616.5,2.4059]
[1723932344201,7.39,2618.4,2617.4,2.86543]
[1723932344202,1.0,2617.5,2617.4,2.86543]
[1723932345169,1.0,2617.5,2617.4,5.73086]
[1723932346311,1.0,2617.5,2617.4,8.13676]
[1723932347670,1.0,2617.5,2617.4,5.73086]
[1723932351167,1.0,2617.5,2617.4,8.13676]
[1723932354843,1.0,2617.5,2617.4,2.86543]
[1723932355038,1.0,2617.5,2617.3,2.86554]
[1723932355384,1.0,2617.5,2617.4,2.86543]
[1723932359150,2.0,2617.5,2617.2,2.86556]
[1723932359366,2.0,2617.5,2617.3,2.86553]
[1723932360828,2.0,2617.5,2617.1,2.86566]
[1723932361018,2.0,2617.5,2617.1,2.86571]
[1723932361752,2.0,2617.5,2616.9,2.2871]
[1723932361961,7.215847,2617.5,2616.8,5.86601]
[1723932362172,2.31,2617.4,2616.9,2.86592]
[1723932362453,2.31,2617.4,2616.8,3.0]
[1723932362621,2.86555,2617.3,2616.8,2.86604]
[1723932362829,3.869638,2617.3,2616.9,3.0]
[1723932363057,1.004088,2617.3,2616.9,3.0]
[1723932363963,1.004088,2617.3,2616.6,5.15334]
[1723932363964,18.64,2617.2,2616.6,5.15339]
[1723932364256,18.64,2617.2,2616.8,2.86606]
[1723932364257,19.2579518,2617.2,2616.8,2.86606]
[1723932364486,22.1236318,2617.2,2616.6,2.86623]
[1723932364685,2.3644,2617.0,2616.5,2.8664]
[1723932364983,7.91037958,2617.0,2616.5,2.8664]
[1723932365580,2.866,2616.9,2616.4,2.86646]
[1723932365806,18.64,2616.8,2616.4,2.86646]
[1723932365999,18.64,2616.8,2616.1,2.86685]
[1723932366663,21.027046,2616.8,2616.1,2.86685]
[1723932366854,23.893196,2616.8,2616.1,2.86685]
[1723932367053,23.893196,2616.8,2616.2,2.86668]
[1723932367504,21.027046,2616.8,2616.3,2.86658]
[1723932368929,18.64,2616.8,2616.4,2.86652]
[1723932369215,18.64,2616.8,2616.6,2.8663]
[1723932369420,18.64,2616.9,2616.6,2.8663]
[1723932371005,18.64,2616.9,2616.4,5.18232]
[1723932371006,21.027018,2616.9,2616.4,2.86643]
[1723932371321,2.8661,2616.8,2616.3,2.86656]
[1723932371485,21.027018,2616.9,2616.4,2.86653]
[1723932371918,5.23036,2617.0,2615.4,2.3158]
[1723932371919,2.8666,2616.4,2615.4,2.3158]
[1723932372128,18.64,2616.3,2615.8,2.86712]
[1723932372279,21.5067,2616.3,2615.7,2.86729]
[1723932372675,21.5067,2616.3,2615.8,2.86716]
[1723932372880,22.51224651,2616.3,2615.8,2.86716]
[1723932373699,2.3644,2616.2,2615.8,2.86713]
[1723932374018,2.3644,2616.2,2615.9,2.86706]
[1723932374180,2.3644,2616.2,2615.7,2.86719]
[1723932374381,2.3644,2616.2,2615.8,2.86717]
[1723932374684,2.3644,2616.2,2615.9,2.86708]
[1723932375200,21.0044,2616.2,2615.8,5.73421]
[1723932375786,21.0044,2616.2,2615.8,2.8671]
[1723932378450,18.64,2616.1,2615.7,2.86724]
[1723932378759,18.64,2616.1,2615.8,2.86717]
[1723932379550,18.64,2616.1,2615.9,2.86702]
[1723932380618,18.64,2616.6,2616.1,2.86678]
[1723932381225,21.02705,2616.6,2616.2,2.86673]
[1723932381426,23.89342,2616.6,2616.0,2.86696]
[1723932381628,5.778822,2616.5,2616.0,2.86696]
[1723932381920,5.778822,2616.5,2616.0,5.73387]
[1723932382119,5.778822,2616.5,2616.0,2.86691]
[1723932382556,2.912402,2616.5,2616.1,2.86685]
[1723932382758,21.50631,2616.6,2616.1,2.86685]
[1723932384189,18.64,2616.5,2616.1,2.86685]
[1723932386120,18.64,2616.5,2616.0,2.8669]
[1723932387393,18.64,2616.5,2616.1,2.8668]
[1723932390235,18.64,2616.4,2616.1,2.8668]
[1723932390440,18.64,2616.4,2616.2,2.86674]
[1723932391993,18.64,2616.4,2616.3,2.86664]
[1723932393092,18.64,2616.4,2616.3,5.73328]
[1723932393641,18.64,2616.4,2616.3,11.66728]
[1723932395747,18.64,2616.4,2616.3,14.53392]
[1723932396054,18.64,2617.0,2616.8,2.86606]
[1723932396233,18.64,2617.2,2616.9,2.86592]
[1723932397115,21.038754,2617.2,2616.9,2.86592]
[1723932398456,21.038754,2617.2,2616.6,5.25023]
[1723932398457,1.0,2617.5,2617.4,2.86543]
[1723932398805,1.0,2617.5,2617.4,5.73086]
[1723932399158,1.0,2617.5,2617.4,8.11486]
[1723932399613,1.0,2617.5,2617.4,10.98029]
[1723932399808,1.0,2617.5,2617.4,14.53029]
[1723932410036,1.0,2617.5,2617.4,17.39572]
[1723932411245,0.1288598,2618.3,2617.4,3.55]
[1723932411446,0.1288598,2618.3,2618.2,11.02738]
[1723932411646,0.1288598,2618.3,2618.2,14.02738]
[1723932411854,0.1288598,2618.3,2618.2,14.57738]
[1723932412471,2.86261,2620.0,2618.6,2.4337]
[1723932412472,2.4652,2619.9,2618.6,2.4337]
[1723932412680,2.4652,2619.9,2619.1,2.86347]
[1723932412681,2.86281,2619.8,2619.1,2.86347]
[1723932412838,2.86281,2619.8,2619.2,2.8634]
[1723932413036,0.5614271,2619.7,2619.1,2.86347]
[1723932413231,2.751461,2619.9,2618.6,5.4337]
[1723932413232,2.4652,2619.5,2619.0,2.86368]
[1723932414780,5.32836,2619.5,2619.0,2.86368]
[1723932415086,0.819145,2619.4,2619.0,2.86368]
[1723932415583,0.819145,2619.4,2619.1,2.86355]
[1723932415877,2.4652,2619.5,2619.1,2.86355]
[1723932416378,2.4652,2619.5,2618.9,2.8637]
[1723932416578,2.86327,2619.4,2618.7,2.86395]
[1723932416733,2.86348,2619.2,2618.7,2.86395]
[1723932416936,2.86374,2619.0,2618.5,2.86416]
[1723932417198,2.396894,2618.9,2618.4,2.86434]
[1723932418050,21.50392,2618.8,2618.2,2.8645]
[1723932418252,22.3163594,2618.8,2618.3,2.86443]
[1723932418474,19.4524394,2618.8,2618.4,2.86433]
[1723932420348,19.4524394,2618.8,2618.4,2.86434]
[1723932420997,19.4524394,2618.8,2618.1,3.0]
[1723932420998,2.18493334,2618.7,2618.2,2.86454]
[1723932421196,4.65013334,2618.7,2618.4,2.8643]
[1723932421437,18.64,2618.8,2618.5,2.86414]
[1723932421652,23.654286,2618.8,2618.2,2.8645]
[1723932421944,2.4652,2618.7,2618.2,2.8645]
[1723932422294,2.4652,2618.7,2618.2,2.86449]
[1723932422495,5.3635496,2618.7,2618.2,2.86449]
[1723932422698,5.3635496,2618.7,2618.2,5.72899]
[1723932422939,24.0035496,2618.7,2618.2,2.86449]
[1723932423103,26.8675696,2618.7,2618.2,2.86449]
[1723932423317,2.68675696,2618.6,2618.2,2.86449]
[1723932423509,21.32675696,2618.6,2618.2,2.86449]
[1723932423743,21.32675696,2618.6,2618.1,5.86463]
[1723932424632,24.19088696,2618.6,2618.1,3.0]
[1723932424842,2.86435,2618.4,2617.9,2.86483]
[1723932425155,2.6655977,2618.5,2618.0,5.72952]
[1723932425764,2.6655977,2618.5,2618.0,5.72948]
[1723932425908,2.6655977,2618.5,2618.1,2.86466]
[1723932427363,1.14524903,2618.4,2618.1,2.86466]
[1723932427509,2.6655977,2618.5,2618.1,2.86466]
[1723932427705,2.6655977,2618.5,2618.1,5.72928]
[1723932428761,2.6655977,2618.5,2618.1,2.86462]
[1723932431619,18.64,2618.6,2618.3,2.86443]
[1723932432967,18.64,2618.6,2617.9,2.86488]
[1723932433164,4.97481,2618.5,2618.0,2.86473]
[1723932433479,2.11052,2618.5,2617.9,2.86488]
[1723932433683,2.11052,2618.5,2617.7,5.865]
[1723932433684,2.86451,2618.3,2617.7,5.865]
[1723932433962,2.86465,2618.2,2617.3,2.3576]
[1723932434118,5.16627,2618.2,2617.7,2.86509]
[1723932435223,5.969339,2618.2,2617.7,2.86509]
[1723932435618,5.969339,2618.2,2617.7,5.73014]
[1723932435859,3.104769,2618.2,2617.8,2.8649]
[1723932436021,2.3017,2618.2,2617.8,2.8649]
[1723932439227,2.3017,2618.2,2618.0,2.86478]
[1723932440613,2.3017,2618.2,2617.9,2.86483]
[1723932440912,2.3017,2618.2,2617.9,2.86482]
[1723932441087,2.3017,2618.2,2618.0,2.86477]
[1723932442207,5.16183,2618.5,2618.0,2.86477]
[1723932442508,5.16183,2618.5,2617.7,2.4269]
[1723932442509,2.2976,2618.5,2617.7,2.4269]
[1723932442711,2.86401,2618.7,2618.3,2.86438]
[1723932442918,5.68889393,2618.7,2618.1,2.86457]
[1723932443080,1.08504739,2618.6,2618.1,2.86457]
[1723932443614,3.94917739,2618.6,2618.1,2.86457]
[1723932443910,18.64,2618.5,2618.1,2.86457]
[1723932444067,5.16195,2618.4,2617.9,2.86481]
[1723932444268,5.07271274,2618.4,2617.7,2.86505]
[1723932444463,2.86461,2618.2,2617.7,2.86505]
[1723932444719,7.93713274,2618.4,2617.7,2.86505]
[1723932444935,4.81953493,2618.3,2617.8,2.86494]
[1723932445068,2.86456,2618.2,2617.6,5.86511]
[1723932445273,4.14022877,2618.2,2617.7,2.86508]
[1723932445514,2.86473,2618.1,2617.6,3.0]
[1723932445714,2.86473,2618.1,2617.6,5.86516]
[1723932446073,5.16239,2618.0,2617.5,2.86524]
[1723932446311,2.86493,2617.9,2617.4,2.86538]
[1723932446628,18.64,2617.8,2617.4,2.86538]
[1723932446773,18.61926727,2617.8,2617.4,2.86538]
[1723932447787,18.61926727,2617.8,2617.5,2.86532]
[1723932448174,18.61926727,2617.8,2617.6,2.86521]
[1723932448715,18.61926727,2617.8,2617.7,2.86511]
[1723932450624,18.61926727,2617.8,2617.7,5.73022]
[1723932455539,18.61926727,2618.1,2617.9,2.86484]
[1723932455736,18.61926727,2618.1,2617.9,5.72966]
[1723932456183,18.61926727,2618.1,2617.9,2.86482]
[1723932457792,18.61926727,2618.1,2617.7,2.86503]
[1723932457793,20.481194,2618.1,2617.7,2.86503]
[1723932458080,20.481194,2618.1,2617.4,2.86533]
[1723932458081,2.86479,2618.0,2617.4,2.86533]
[1723932458287,2.2976,2617.8,2617.4,2.86533]
[1723932459482,2.2976,2617.8,2617.1,2.86569]
[1723932459483,2.86522,2617.6,2617.1,2.86569]
[1723932461564,2.86522,2617.6,2617.1,5.73139]
[1723932462072,5.16268,2617.8,2617.3,2.86554]
[1723932462400,5.16266,2617.8,2617.3,2.86554]
[1723932462587,6.92539715,2617.8,2617.2,2.86565]
[1723932462885,2.86511,2617.7,2617.2,2.86565]
[1723932465491,2.86524,2617.6,2617.1,2.86569]
[1723932465710,0.97905072,2617.6,2617.1,2.86569]
[1723932465850,2.86511,2617.7,2617.1,2.86569]
[1723932466441,2.86511,2617.7,2617.3,2.86554]
[1723932466595,4.06033715,2617.8,2617.3,2.86554]
[1723932466796,6.92534715,2617.8,2617.3,2.86554]
[1723932467018,0.85206468,2617.7,2617.3,2.86554]
[1723932468801,0.62596468,2617.7,2617.3,2.86554]
[1723932470497,18.61926727,2617.6,2617.2,5.23335]
[1723932470827,18.61926727,2617.6,2617.4,2.86543]
[1723932471441,18.61926727,2617.6,2617.4,2.86536]
[1723932471811,18.61926727,2617.6,2617.5,2.86532]
[1723932476292,18.61926727,2617.6,2617.4,5.73074]
[1723932476548,18.61926727,2617.6,2617.2,5.73118]
[1723932476712,18.61926727,2617.6,2617.0,2.86579]
[1723932476919,18.61926727,2617.6,2617.3,2.86554]
[1723932478249,18.61926727,2617.6,2617.3,2.86549]
[1723932480306,1.314,2617.5,2616.9,5.23364]
[1723932480508,1.314,2617.3,2616.8,2.86598]
[1723932480754,19.93326727,2617.3,2616.9,2.86593]
[1723932481984,18.61926727,2617.3,2616.9,2.86593]
[1723932482685,18.61926727,2617.3,2616.5,5.86641]
[1723932482890,18.61926727,2617.3,2617.0,2.86579]
[1723932483393,18.61926727,2617.3,2617.1,2.86573]
[1723932484260,18.61926727,2617.3,2617.2,2.86565]
[1723932485362,2.3645,2617.6,2616.9,2.86591]
[1723932485363,18.61926727,2617.5,2616.9,2.86591]
[1723932485781,18.61926727,2617.5,2617.0,2.86581]
[1723932485782,21.48465727,2617.5,2617.0,2.86581]
[1723932486000,21.85679235,2617.5,2617.0,2.86581]
[1723932486155,21.85679235,2617.5,2617.1,2.86574]
[1723932486348,18.61926727,2617.5,2617.1,2.86574]
[1723932487397,18.61926727,2617.5,2617.1,2.8657]
[1723932488463,18.61926727,2617.5,2617.3,2.86554]
[1723932490398,2.3645,2617.4,2617.1,2.86566]
[1723932490959,18.61926727,2617.5,2617.1,2.86566]
[1723932491152,18.61926727,2617.5,2617.2,2.86565]
[1723932491406,18.61926727,2617.4,2617.2,2.86565]
[1723932496020,18.61926727,2617.4,2617.3,2.86554]
[1723932496915,18.61926727,2617.4,2617.3,5.73108]
[1723932497569,18.61926727,2617.4,2617.3,2.86554]
[1723932501622,18.61926727,2617.4,2617.3,5.73108]
[1723932502418,18.61926727,2617.4,2617.3,2.86554]
[1723932502718,18.61926727,2617.4,2617.3,5.73108]
[1723932502925,18.61926727,2617.4,2617.3,8.17838]
[1723932503106,18.61926727,2617.6,2617.5,2.86532]
[1723932507277,18.61926727,2617.6,2617.3,2.86547]
[1723932507757,20.21456694,2617.6,2617.4,2.86542]
[1723932507908,21.52856694,2617.6,2617.4,2.86542]
[1723932508561,19.93326727,2617.6,2617.4,2.86542]
[1723932509220,19.93326727,2617.6,2617.3,2.86547]
[1723932509221,18.61926727,2617.5,2617.3,2.86547]
[1723932509630,18.61926727,2617.5,2617.3,5.73095]
[1723932509955,18.61926727,2617.5,2617.4,2.86543]
[1723932513739,18.61926727,2617.5,2617.4,5.31273]
[1723932515012,20.21456694,2617.7,2617.4,5.31273]
[1723932516763,18.61926727,2617.7,2617.4,5.31273]
[1723932517348,20.21456694,2617.7,2617.5,2.86532]
[1723932517844,18.61926727,2617.7,2617.5,2.86532]
[1723932518277,18.61926727,2617.7,2617.6,5.73044]
[1723932520464,9.39613206,2618.1,2617.6,5.73044]
[1723932520465,20.21456694,2618.1,2617.9,2.86489]